[Event "Early-Titled-Tuesday-Blitz-January-30-2024"]
[Site "Chess.com"]
[Date "2024.01.30"]
[Round "6"]
[White "Lennis93"]
[Black "RandomNoob04"]
[Result "0-1"]
[WhiteElo "2713"]
[BlackElo "2577"]
[TimeControl "180+1"]
[EndTime "9:09:12 PST"]
[Termination "RandomNoob04 won by checkmate"]

1. d4 {[%clk 0:03:00.9]} 1... Nf6 {[%clk 0:02:59.7]} 2. c4 {[%clk 0:03:01.1]}
2... c5 {[%clk 0:03:00]} 3. d5 {[%clk 0:03:00.5]} 3... b5 {[%clk 0:03:00.1]} 4.
cxb5 {[%clk 0:03:01.4]} 4... a6 {[%clk 0:03:00.5]} 5. b6 {[%clk 0:03:00.9]} 5...
Qxb6 {[%clk 0:03:00.1]} 6. Nc3 {[%clk 0:03:01.5]} 6... d6 {[%clk 0:03:01]} 7.
Nf3 {[%clk 0:03:02.1]} 7... g6 {[%clk 0:03:01.5]} 8. Nd2 {[%clk 0:03:02.8]} 8...
Bg7 {[%clk 0:03:02.2]} 9. Nc4 {[%clk 0:03:03.5]} 9... Qc7 {[%clk 0:03:02.9]} 10.
a4 {[%clk 0:03:03.7]} 10... O-O {[%clk 0:03:01]} 11. a5 {[%clk 0:03:04.1]} 11...
Nbd7 {[%clk 0:03:01.1]} 12. Bf4 {[%clk 0:03:03.2]} 12... Rb8 {[%clk 0:02:53.7]}
13. Qd2 {[%clk 0:03:03.4]} 13... Rb4 {[%clk 0:02:52.7]} 14. e4 {[%clk
0:03:03.6]} 14... Ng4 {[%clk 0:02:47.2]} 15. Be2 {[%clk 0:02:55.5]} 15... Nge5
{[%clk 0:02:46.6]} 16. Ne3 {[%clk 0:02:51.5]} 16... c4 {[%clk 0:02:27.3]} 17.
O-O {[%clk 0:02:50.3]} 17... Nc5 {[%clk 0:02:27]} 18. Ra2 {[%clk 0:02:07.7]}
18... Ned3 {[%clk 0:02:18.6]} 19. Bg3 {[%clk 0:02:02.2]} 19... Nb3 {[%clk
0:02:16.4]} 20. Qd1 {[%clk 0:01:59.4]} 20... Nxb2 {[%clk 0:02:12.9]} 21. Rxb2
{[%clk 0:01:57.4]} 21... Bxc3 {[%clk 0:02:13.4]} 22. Rc2 {[%clk 0:01:57.8]}
22... Bg7 {[%clk 0:02:10.8]} 23. Nxc4 {[%clk 0:01:50.1]} 23... Nd4 {[%clk
0:02:07.9]} 24. Rc1 {[%clk 0:01:45.8]} 24... Bd7 {[%clk 0:01:42.4]} 25. Bd3
{[%clk 0:01:40.6]} 25... Qd8 {[%clk 0:01:34.3]} 26. Nb6 {[%clk 0:01:38.7]} 26...
Bb5 {[%clk 0:01:31.6]} 27. Rc8 {[%clk 0:01:25.1]} 27... Qxc8 {[%clk 0:01:31.4]}
28. Nxc8 {[%clk 0:01:25.2]} 28... Rxc8 {[%clk 0:01:32.3]} 29. Bxb5 {[%clk
0:01:24.7]} 29... Rxb5 {[%clk 0:01:33.2]} 30. Qg4 {[%clk 0:01:14.2]} 30... Rc2
{[%clk 0:01:26.1]} 31. Qd7 {[%clk 0:01:12.2]} 31... Bf6 {[%clk 0:01:20.9]} 32.
h4 {[%clk 0:00:57.4]} 32... h5 {[%clk 0:01:08.9]} 33. Kh2 {[%clk 0:00:55.9]}
33... Kg7 {[%clk 0:01:06.8]} 34. Qd8 {[%clk 0:00:25.7]} 34... Ne2 {[%clk
0:00:51.1]} 35. Kh3 {[%clk 0:00:17.4]} 35... Nxg3 {[%clk 0:00:41.6]} 36. Kxg3
{[%clk 0:00:18.3]} 36... Rb3+ {[%clk 0:00:22.6]} 37. Kh2 {[%clk 0:00:18]} 37...
Bxh4 {[%clk 0:00:21.8]} 38. Kg1 {[%clk 0:00:16.4]} 38... Rbb2 {[%clk 0:00:18.3]}
39. g3 {[%clk 0:00:07.2]} 39... Bxg3 {[%clk 0:00:10.4]} 40. Qxe7 {[%clk
0:00:07.6]} 40... h4 {[%clk 0:00:09.1]} 41. e5 {[%clk 0:00:04.7]} 41... Bxe5
{[%clk 0:00:07.6]} 42. Qxh4 {[%clk 0:00:04.8]} 42... Rd2 {[%clk 0:00:06]} 43.
Qh1 {[%clk 0:00:04.6]} 43... Bd4 {[%clk 0:00:05.6]} 44. Qe4 {[%clk 0:00:04.4]}
44... Bxf2+ {[%clk 0:00:05.2]} 45. Kh1 {[%clk 0:00:04.8]} 45... Bc5 {[%clk
0:00:04]} 46. Rf4 {[%clk 0:00:02.6]} 46... Rh2# {[%clk 0:00:03.8]} 0-1

[Event "Early-Titled-Tuesday-Blitz-January-30-2024"]
[Site "Chess.com"]
[Date "2024.01.30"]
[Round "6"]
[White "LeoWin2012"]
[Black "SmirnovTimofey2000"]
[Result "1-0"]
[WhiteElo "2190"]
[BlackElo "1936"]
[TimeControl "180+1"]
[EndTime "9:09:12 PST"]
[Termination "LeoWin2012 won on time"]

1. Nf3 {[%clk 0:03:00.9]} 1... d5 {[%clk 0:02:59.3]} 2. g3 {[%clk 0:03:01.2]}
2... Nf6 {[%clk 0:02:58.4]} 3. Bg2 {[%clk 0:03:01.4]} 3... Bf5 {[%clk
0:02:58.8]} 4. d3 {[%clk 0:02:54.6]} 4... e6 {[%clk 0:02:57.1]} 5. O-O {[%clk
0:02:49.7]} 5... Be7 {[%clk 0:02:56.5]} 6. Nbd2 {[%clk 0:02:49.8]} 6... O-O
{[%clk 0:02:55.9]} 7. Re1 {[%clk 0:02:49.7]} 7... h6 {[%clk 0:02:53.6]} 8. b3
{[%clk 0:02:49.5]} 8... c6 {[%clk 0:02:51.2]} 9. Bb2 {[%clk 0:02:49.2]} 9...
Nbd7 {[%clk 0:02:49.9]} 10. e4 {[%clk 0:02:49.1]} 10... dxe4 {[%clk 0:02:47]}
11. dxe4 {[%clk 0:02:50]} 11... Bh7 {[%clk 0:02:41.1]} 12. Qe2 {[%clk
0:02:44.9]} 12... a5 {[%clk 0:02:37.1]} 13. Rad1 {[%clk 0:02:42.8]} 13... Qc7
{[%clk 0:02:34.2]} 14. Nc4 {[%clk 0:02:42.1]} 14... Bxe4 {[%clk 0:02:09.1]} 15.
Nfe5 {[%clk 0:02:41.5]} 15... Bxg2 {[%clk 0:02:02.5]} 16. Kxg2 {[%clk
0:02:42.4]} 16... Nxe5 {[%clk 0:01:55.6]} 17. Nxe5 {[%clk 0:02:43.3]} 17... Rad8
{[%clk 0:01:51.3]} 18. Ng4 {[%clk 0:02:43.1]} 18... Rxd1 {[%clk 0:01:37]} 19.
Rxd1 {[%clk 0:02:42.7]} 19... Rd8 {[%clk 0:01:23.9]} 20. Nxf6+ {[%clk
0:02:41.4]} 20... Bxf6 {[%clk 0:01:18.2]} 21. Bxf6 {[%clk 0:02:41.5]} 21... gxf6
{[%clk 0:01:19.1]} 22. Qg4+ {[%clk 0:02:40.2]} 22... Kh7 {[%clk 0:01:13.8]} 23.
Re1 {[%clk 0:02:39]} 23... Qd6 {[%clk 0:00:48.3]} 24. Qh4 {[%clk 0:02:38.7]}
24... f5 {[%clk 0:00:41.3]} 25. Qf6 {[%clk 0:02:35.6]} 25... Rd7 {[%clk
0:00:33.7]} 26. h4 {[%clk 0:02:34.3]} 26... Qd5+ {[%clk 0:00:27.5]} 27. Kg1
{[%clk 0:02:34.2]} 27... Qd4 {[%clk 0:00:23.3]} 28. Qxd4 {[%clk 0:02:32.1]}
28... Rxd4 {[%clk 0:00:22.8]} 29. Re2 {[%clk 0:02:32.6]} 29... Kg6 {[%clk
0:00:22.3]} 30. Kg2 {[%clk 0:02:32.6]} 30... Rd5 {[%clk 0:00:19.3]} 31. Kf3
{[%clk 0:02:31.6]} 31... Kf6 {[%clk 0:00:19.6]} 32. c4 {[%clk 0:02:27.7]} 32...
Re5 {[%clk 0:00:18.8]} 33. Rd2 {[%clk 0:02:27.4]} 33... Ke7 {[%clk 0:00:17.9]}
34. Kg2 {[%clk 0:02:25.8]} 34... Re1 {[%clk 0:00:18]} 35. f3 {[%clk 0:02:24.1]}
35... f6 {[%clk 0:00:18.2]} 36. g4 {[%clk 0:02:22.9]} 36... fxg4 {[%clk
0:00:18.2]} 37. fxg4 {[%clk 0:02:23.8]} 37... Re4 {[%clk 0:00:17.4]} 38. Kf3
{[%clk 0:02:23.8]} 38... Re5 {[%clk 0:00:17.1]} 39. Rg2 {[%clk 0:02:19.3]} 39...
Re1 {[%clk 0:00:14.4]} 40. g5 {[%clk 0:02:18.4]} 40... hxg5 {[%clk 0:00:13.9]}
41. hxg5 {[%clk 0:02:19.3]} 41... fxg5 {[%clk 0:00:13.7]} 42. Rxg5 {[%clk
0:02:20.2]} 42... Rf1+ {[%clk 0:00:13.9]} 43. Ke2 {[%clk 0:02:19.9]} 43... Rf7
{[%clk 0:00:13.9]} 44. Rh5 {[%clk 0:02:19.9]} 44... b6 {[%clk 0:00:12.7]} 45.
Rh8 {[%clk 0:02:19.9]} 45... Kd6 {[%clk 0:00:11]} 46. Kd3 {[%clk 0:02:13]} 46...
Kc5 {[%clk 0:00:10.8]} 47. Rb8 {[%clk 0:02:06.8]} 47... Rd7+ {[%clk 0:00:09.7]}
48. Kc3 {[%clk 0:02:06]} 48... b5 {[%clk 0:00:09.1]} 49. cxb5 {[%clk 0:02:05.2]}
49... cxb5 {[%clk 0:00:09.3]} 50. Rc8+ {[%clk 0:02:03.3]} 50... Kb6 {[%clk
0:00:07.9]} 51. Re8 {[%clk 0:02:04]} 51... Rd6 {[%clk 0:00:07]} 52. a3 {[%clk
0:02:01.9]} 52... Rc6+ {[%clk 0:00:06.8]} 53. Kd4 {[%clk 0:02:01.1]} 53... b4
{[%clk 0:00:06.3]} 54. a4 {[%clk 0:02:00.7]} 54... Rd6+ {[%clk 0:00:04.6]} 55.
Ke4 {[%clk 0:01:57.8]} 55... Kc6 {[%clk 0:00:05]} 56. Ra8 {[%clk 0:01:57.1]}
56... Rd5 {[%clk 0:00:04.2]} 57. Rc8+ {[%clk 0:01:55.7]} 57... Kd6 {[%clk
0:00:04.5]} 58. Rc2 {[%clk 0:01:52]} 58... Ke7 {[%clk 0:00:04.5]} 59. Rh2 {[%clk
0:01:50.8]} 59... Kf6 {[%clk 0:00:03.8]} 60. Rh7 {[%clk 0:01:50.5]} 60... Kg6
{[%clk 0:00:03.1]} 61. Rb7 {[%clk 0:01:50.6]} 61... Kf6 {[%clk 0:00:03.2]} 62.
Ke3 {[%clk 0:01:43.8]} 62... Rc5 {[%clk 0:00:03.7]} 63. Kd4 {[%clk 0:01:41.7]}
63... Rc3 {[%clk 0:00:03.8]} 64. Rb5 {[%clk 0:01:42]} 64... Rxb3 {[%clk
0:00:04.1]} 65. Rxa5 {[%clk 0:01:42.3]} 65... e5+ {[%clk 0:00:04.4]} 66. Kc4
{[%clk 0:01:38.5]} 66... Ra3 {[%clk 0:00:03.8]} 67. Kxb4 {[%clk 0:01:38.9]}
67... Ra1 {[%clk 0:00:02.7]} 68. Ra8 {[%clk 0:01:36.9]} 68... e4 {[%clk
0:00:03.2]} 69. Re8 {[%clk 0:01:35.9]} 69... Kf5 {[%clk 0:00:03.5]} 70. a5
{[%clk 0:01:34.3]} 70... Kf4 {[%clk 0:00:03.8]} 71. Kb5 {[%clk 0:01:31.9]} 71...
e3 {[%clk 0:00:03.9]} 72. Kb6 {[%clk 0:01:31.4]} 72... Kf3 {[%clk 0:00:04.3]}
73. a6 {[%clk 0:01:30.9]} 73... Kf2 {[%clk 0:00:04.8]} 74. Rf8+ {[%clk
0:01:30.4]} 74... Ke1 {[%clk 0:00:04.7]} 75. Rh8 {[%clk 0:01:28]} 75... e2
{[%clk 0:00:05]} 76. Rh1+ {[%clk 0:01:27.9]} 1-0

[Event "Early-Titled-Tuesday-Blitz-January-30-2024"]
[Site "Chess.com"]
[Date "2024.01.30"]
[Round "6"]
[White "Doublekk14"]
[Black "Juicy_Fork"]
[Result "1-0"]
[WhiteElo "2269"]
[BlackElo "2428"]
[TimeControl "180+1"]
[EndTime "9:09:15 PST"]
[Termination "Doublekk14 won by checkmate"]

1. c4 {[%clk 0:03:00.9]} 1... c5 {[%clk 0:02:58.5]} 2. Nc3 {[%clk 0:02:59.5]}
2... Nf6 {[%clk 0:02:55.8]} 3. Nf3 {[%clk 0:02:59.3]} 3... g6 {[%clk 0:02:53.5]}
4. e3 {[%clk 0:02:58.4]} 4... Bg7 {[%clk 0:02:50.4]} 5. d4 {[%clk 0:02:57.3]}
5... cxd4 {[%clk 0:02:49.8]} 6. exd4 {[%clk 0:02:57]} 6... O-O {[%clk
0:02:49.8]} 7. Be2 {[%clk 0:02:55.9]} 7... d5 {[%clk 0:02:48.5]} 8. cxd5 {[%clk
0:02:50.4]} 8... Nxd5 {[%clk 0:02:46.3]} 9. O-O {[%clk 0:02:50.7]} 9... Nc6
{[%clk 0:02:46.2]} 10. h3 {[%clk 0:02:49.5]} 10... Bf5 {[%clk 0:02:35.2]} 11.
Qb3 {[%clk 0:02:46.5]} 11... Nb6 {[%clk 0:02:22]} 12. Be3 {[%clk 0:02:41.5]}
12... Be6 {[%clk 0:02:07.6]} 13. Qb5 {[%clk 0:02:27.5]} 13... a6 {[%clk
0:01:48]} 14. Qg5 {[%clk 0:02:23.3]} 14... Nd5 {[%clk 0:01:40.3]} 15. Rfd1
{[%clk 0:02:14.8]} 15... Ncb4 {[%clk 0:01:18.2]} 16. Rac1 {[%clk 0:02:08.7]}
16... Nxc3 {[%clk 0:01:07.1]} 17. bxc3 {[%clk 0:02:07.2]} 17... Nxa2 {[%clk
0:01:07.4]} 18. Rc2 {[%clk 0:01:23.3]} 18... Bb3 {[%clk 0:01:03.8]} 19. Rxa2
{[%clk 0:01:24.2]} 19... Bxa2 {[%clk 0:01:01.7]} 20. c4 {[%clk 0:01:20.8]} 20...
Rc8 {[%clk 0:00:46]} 21. c5 {[%clk 0:01:20]} 21... Bf6 {[%clk 0:00:33.3]} 22.
Qh6 {[%clk 0:01:16.7]} 22... Qd5 {[%clk 0:00:24.1]} 23. Ne5 {[%clk 0:01:04.8]}
23... Bb3 {[%clk 0:00:13.5]} 24. Bf3 {[%clk 0:00:47.4]} 24... Qe6 {[%clk
0:00:10.9]} 25. Bg4 {[%clk 0:00:45.4]} 25... Qd5 {[%clk 0:00:09.5]} 26. Rd2
{[%clk 0:00:42.4]} 26... Rcd8 {[%clk 0:00:04.3]} 27. Bf3 {[%clk 0:00:42]} 27...
Qe6 {[%clk 0:00:04.5]} 28. Bg4 {[%clk 0:00:40.8]} 28... Qd5 {[%clk 0:00:04.6]}
29. Bf3 {[%clk 0:00:41]} 29... Qe6 {[%clk 0:00:04.8]} 30. Ng4 {[%clk 0:00:34.9]}
30... Bg7 {[%clk 0:00:05]} 31. Qf4 {[%clk 0:00:34.9]} 31... Qc4 {[%clk
0:00:04.7]} 32. Nh6+ {[%clk 0:00:28]} 32... Kh8 {[%clk 0:00:03.1]} 33. Be2
{[%clk 0:00:27.4]} 33... Qd5 {[%clk 0:00:02.1]} 34. Bf3 {[%clk 0:00:26.8]} 34...
Qe6 {[%clk 0:00:02.3]} 35. Bg4 {[%clk 0:00:25]} 35... Qc4 {[%clk 0:00:01.8]} 36.
Be2 {[%clk 0:00:23.9]} 36... Bxh6 {[%clk 0:00:02.4]} 37. Qxh6 {[%clk 0:00:22.2]}
37... Qe6 {[%clk 0:00:02.3]} 38. Bf3 {[%clk 0:00:15.1]} 38... b6 {[%clk
0:00:01.6]} 39. cxb6 {[%clk 0:00:13.6]} 39... Bd5 {[%clk 0:00:01.9]} 40. Bg4
{[%clk 0:00:11.9]} 40... Qf6 {[%clk 0:00:01.5]} 41. Bg5 {[%clk 0:00:10.4]} 41...
Qxb6 {[%clk 0:00:01.6]} 42. Bxe7 {[%clk 0:00:09.5]} 42... Qb1+ {[%clk
0:00:01.1]} 43. Kh2 {[%clk 0:00:09.5]} 43... Qb7 {[%clk 0:00:01.8]} 44. Bf6+
{[%clk 0:00:09.5]} 44... Kg8 {[%clk 0:00:01.2]} 45. Qg7# {[%clk 0:00:09.9]} 1-0

[Event "Early-Titled-Tuesday-Blitz-January-30-2024"]
[Site "Chess.com"]
[Date "2024.01.30"]
[Round "6"]
[White "gm_rashid"]
[Black "topce"]
[Result "0-1"]
[WhiteElo "2524"]
[BlackElo "2394"]
[TimeControl "180+1"]
[EndTime "9:09:21 PST"]
[Termination "topce won on time"]

1. e4 {[%clk 0:03:00.9]} 1... e6 {[%clk 0:03:00]} 2. d4 {[%clk 0:03:00.7]} 2...
d5 {[%clk 0:03:00.2]} 3. Nc3 {[%clk 0:03:00.3]} 3... Nf6 {[%clk 0:02:58.2]} 4.
e5 {[%clk 0:03:00]} 4... Nfd7 {[%clk 0:02:58.2]} 5. Nf3 {[%clk 0:03:00.3]} 5...
c5 {[%clk 0:02:57.7]} 6. dxc5 {[%clk 0:03:00.4]} 6... Bxc5 {[%clk 0:02:50.3]} 7.
Bd3 {[%clk 0:02:57.5]} 7... Nc6 {[%clk 0:02:50.2]} 8. Bf4 {[%clk 0:02:56.6]}
8... h6 {[%clk 0:02:49.5]} 9. Bg3 {[%clk 0:02:53.4]} 9... g5 {[%clk 0:02:47.8]}
10. h3 {[%clk 0:02:52.6]} 10... a6 {[%clk 0:02:45.3]} 11. O-O {[%clk 0:02:48.7]}
11... h5 {[%clk 0:02:40.8]} 12. h4 {[%clk 0:02:44.1]} 12... g4 {[%clk
0:02:37.4]} 13. Ng5 {[%clk 0:02:42.2]} 13... Ndxe5 {[%clk 0:02:32]} 14. Re1
{[%clk 0:02:37.6]} 14... Qf6 {[%clk 0:02:17.5]} 15. Bf1 {[%clk 0:02:18.3]} 15...
Bd7 {[%clk 0:02:13.8]} 16. Qe2 {[%clk 0:02:01.3]} 16... O-O-O {[%clk 0:02:02.1]}
17. Bxe5 {[%clk 0:02:00.2]} 17... Nxe5 {[%clk 0:02:00.6]} 18. Nce4 {[%clk
0:01:01.4]} 18... dxe4 {[%clk 0:01:53.6]} 19. Nxe4 {[%clk 0:01:01.4]} 19...
Bxf2+ {[%clk 0:01:44.9]} 20. Qxf2 {[%clk 0:00:56.9]} 20... Qxf2+ {[%clk
0:01:35.1]} 21. Kxf2 {[%clk 0:00:56.7]} 21... Ng6 {[%clk 0:01:23.6]} 22. g3
{[%clk 0:00:54.9]} 22... Bc6 {[%clk 0:01:23.7]} 23. Nf6 {[%clk 0:00:52.4]} 23...
Rd2+ {[%clk 0:01:20.1]} 24. Re2 {[%clk 0:00:52.3]} 24... Rd6 {[%clk 0:01:15.9]}
25. Ree1 {[%clk 0:00:40.9]} 25... Bf3 {[%clk 0:01:14.4]} 26. Ke3 {[%clk
0:00:32.9]} 26... e5 {[%clk 0:01:10.5]} 27. Ne4 {[%clk 0:00:32.1]} 27... Rd4
{[%clk 0:01:04.8]} 28. Bd3 {[%clk 0:00:24.3]} 28... f5 {[%clk 0:01:03.2]} 29.
Ng5 {[%clk 0:00:24.5]} 29... f4+ {[%clk 0:00:47.6]} 30. Kf2 {[%clk 0:00:24.2]}
30... fxg3+ {[%clk 0:00:44.3]} 31. Kxg3 {[%clk 0:00:24.1]} 31... Nf4 {[%clk
0:00:44.8]} 32. Bf5+ {[%clk 0:00:20.5]} 32... Kb8 {[%clk 0:00:44.4]} 33. Nxf3
{[%clk 0:00:19.8]} 33... gxf3 {[%clk 0:00:43.4]} 34. Rxe5 {[%clk 0:00:19.7]}
34... Rf8 {[%clk 0:00:33.3]} 35. Kxf3 {[%clk 0:00:18.2]} 35... Ng6 {[%clk
0:00:30.2]} 36. Rae1 {[%clk 0:00:11.3]} 36... Rf4+ {[%clk 0:00:23.5]} 37. Kg3
{[%clk 0:00:10.2]} 37... R4xf5 {[%clk 0:00:22.5]} 38. Rxf5 {[%clk 0:00:10.2]}
38... Rxf5 {[%clk 0:00:23.4]} 39. Re6 {[%clk 0:00:10.3]} 39... Ne5 {[%clk
0:00:22.4]} 40. Rh6 {[%clk 0:00:09.6]} 40... Kc7 {[%clk 0:00:22.3]} 41. b3
{[%clk 0:00:07.1]} 41... a5 {[%clk 0:00:21.1]} 42. c4 {[%clk 0:00:06.9]} 42...
b6 {[%clk 0:00:21.2]} 43. Kg2 {[%clk 0:00:06.1]} 43... Ng4 {[%clk 0:00:14.7]}
44. Kg3 {[%clk 0:00:05.4]} 44... b5 {[%clk 0:00:11.3]} 45. Ra6 {[%clk
0:00:03.9]} 45... bxc4 {[%clk 0:00:10]} 46. bxc4 {[%clk 0:00:03.8]} 46... Rc5
{[%clk 0:00:10.1]} 47. a4 {[%clk 0:00:01.2]} 47... Kb7 {[%clk 0:00:09.9]} 0-1

[Event "Early-Titled-Tuesday-Blitz-January-30-2024"]
[Site "Chess.com"]
[Date "2024.01.30"]
[Round "6"]
[White "Shushik"]
[Black "alekroth65"]
[Result "1-0"]
[WhiteElo "2530"]
[BlackElo "2365"]
[TimeControl "180+1"]
[EndTime "9:09:21 PST"]
[Termination "Shushik won by resignation"]

1. e4 {[%clk 0:03:00.9]} 1... d6 {[%clk 0:02:59.4]} 2. d4 {[%clk 0:03:00]} 2...
Nf6 {[%clk 0:02:59.8]} 3. Nc3 {[%clk 0:03:00.7]} 3... g6 {[%clk 0:02:59.9]} 4.
f4 {[%clk 0:02:59.5]} 4... Bg7 {[%clk 0:03:00]} 5. Nf3 {[%clk 0:03:00.2]} 5...
O-O {[%clk 0:02:59.8]} 6. Bd3 {[%clk 0:02:59.3]} 6... Na6 {[%clk 0:02:58.8]} 7.
O-O {[%clk 0:02:52.1]} 7... c5 {[%clk 0:02:53.9]} 8. Bxa6 {[%clk 0:02:49.7]}
8... cxd4 {[%clk 0:02:52.1]} 9. Bd3 {[%clk 0:02:26.5]} 9... dxc3 {[%clk
0:02:50]} 10. bxc3 {[%clk 0:02:27.4]} 10... Qc7 {[%clk 0:02:47.6]} 11. Qe1
{[%clk 0:02:22.4]} 11... Be6 {[%clk 0:02:32.8]} 12. Nd4 {[%clk 0:02:17.9]} 12...
Bc4 {[%clk 0:02:24.3]} 13. Kh1 {[%clk 0:02:12.1]} 13... Rac8 {[%clk 0:02:19.7]}
14. Bd2 {[%clk 0:01:59.5]} 14... a6 {[%clk 0:02:16.2]} 15. Nf3 {[%clk
0:01:50.3]} 15... Nd7 {[%clk 0:02:10.8]} 16. Qe2 {[%clk 0:01:45]} 16... Bxc3
{[%clk 0:02:00.1]} 17. Bxc3 {[%clk 0:01:25.8]} 17... Bxd3 {[%clk 0:01:59.6]} 18.
cxd3 {[%clk 0:01:26.6]} 18... Qxc3 {[%clk 0:01:59.2]} 19. Qe3 {[%clk 0:01:24.3]}
19... Nc5 {[%clk 0:01:53.5]} 20. Rad1 {[%clk 0:01:20.3]} 20... b5 {[%clk
0:01:52.4]} 21. f5 {[%clk 0:01:20.1]} 21... b4 {[%clk 0:01:42]} 22. Ng5 {[%clk
0:01:18.3]} 22... a5 {[%clk 0:01:35.4]} 23. Qh3 {[%clk 0:01:12.8]} 23... Qg7
{[%clk 0:01:29.8]} 24. d4 {[%clk 0:01:10]} 24... Na4 {[%clk 0:01:27.2]} 25. e5
{[%clk 0:01:05.2]} 25... h6 {[%clk 0:01:15.7]} 26. f6 {[%clk 0:00:56.9]} 26...
exf6 {[%clk 0:01:16.4]} 27. exf6 {[%clk 0:00:56.2]} 27... Qh8 {[%clk 0:01:15.9]}
28. Ne4 {[%clk 0:00:54.4]} 28... d5 {[%clk 0:01:09.3]} 29. Nd6 {[%clk 0:00:50]}
29... Rc6 {[%clk 0:01:08.7]} 30. Nb7 {[%clk 0:00:43]} 30... Rxf6 {[%clk
0:01:06]} 31. Nxa5 {[%clk 0:00:33.8]} 31... Nc3 {[%clk 0:01:03.4]} 32. Rc1
{[%clk 0:00:29.1]} 32... Rxf1+ {[%clk 0:01:00.6]} 33. Rxf1 {[%clk 0:00:30]}
33... Qxd4 {[%clk 0:00:59.1]} 34. Qxh6 {[%clk 0:00:30.2]} 34... Qa7 {[%clk
0:00:49.6]} 35. Nc6 {[%clk 0:00:29.5]} 35... Qc7 {[%clk 0:00:46.9]} 36. Nd4
{[%clk 0:00:28.2]} 36... Qe5 {[%clk 0:00:42.7]} 37. Nf3 {[%clk 0:00:23.6]} 37...
Qg7 {[%clk 0:00:41.5]} 38. Qe3 {[%clk 0:00:21.4]} 38... Rb8 {[%clk 0:00:37.3]}
39. Nd4 {[%clk 0:00:19.2]} 39... Rd8 {[%clk 0:00:29.1]} 40. Nc6 {[%clk
0:00:19.2]} 40... Rf8 {[%clk 0:00:28.4]} 41. Ne7+ {[%clk 0:00:17.9]} 41... Kh8
{[%clk 0:00:27.3]} 42. Qh3+ {[%clk 0:00:17.7]} 42... Qh7 {[%clk 0:00:20.3]} 43.
Nxg6+ {[%clk 0:00:18]} 43... Kg7 {[%clk 0:00:19.3]} 44. Qxh7+ {[%clk 0:00:16.6]}
44... Kxh7 {[%clk 0:00:20.2]} 45. Nxf8+ {[%clk 0:00:17.3]} 45... Kg7 {[%clk
0:00:20.2]} 46. Nd7 {[%clk 0:00:17.2]} 46... d4 {[%clk 0:00:20.5]} 47. Nc5
{[%clk 0:00:17.3]} 47... Nxa2 {[%clk 0:00:19.1]} 48. Kg1 {[%clk 0:00:17.1]}
48... Nc3 {[%clk 0:00:18]} 49. Kf2 {[%clk 0:00:17.3]} 49... f5 {[%clk
0:00:17.3]} 50. Kf3 {[%clk 0:00:16.6]} 50... b3 {[%clk 0:00:14.4]} 51. Nxb3
{[%clk 0:00:16.6]} 51... Ne4 {[%clk 0:00:14.7]} 52. Nxd4 {[%clk 0:00:15.2]}
52... Nd2+ {[%clk 0:00:14.4]} 53. Kf2 {[%clk 0:00:15.9]} 53... Nxf1 {[%clk
0:00:14]} 54. Nxf5+ {[%clk 0:00:15.9]} 54... Kf6 {[%clk 0:00:14.7]} 55. Kxf1
{[%clk 0:00:16.2]} 55... Kxf5 {[%clk 0:00:15]} 56. Kf2 {[%clk 0:00:16.9]} 56...
Kg5 {[%clk 0:00:15.8]} 57. Kg3 {[%clk 0:00:17.1]} 57... Kf5 {[%clk 0:00:16.7]}
58. Kh4 {[%clk 0:00:17.1]} 58... Kg6 {[%clk 0:00:15.9]} 59. Kg4 {[%clk
0:00:17.7]} 59... Kh6 {[%clk 0:00:15.6]} 60. Kf5 {[%clk 0:00:17.5]} 60... Kg7
{[%clk 0:00:15]} 61. Kg5 {[%clk 0:00:17.5]} 61... Kf7 {[%clk 0:00:14.8]} 62. g3
{[%clk 0:00:16.7]} 1-0

[Event "Early-Titled-Tuesday-Blitz-January-30-2024"]
[Site "Chess.com"]
[Date "2024.01.30"]
[Round "6"]
[White "Ron_Weasley_Chess"]
[Black "Boundless_Strike"]
[Result "1/2-1/2"]
[WhiteElo "2438"]
[BlackElo "2629"]
[TimeControl "180+1"]
[EndTime "9:09:22 PST"]
[Termination "Game drawn by repetition"]

1. Nf3 {[%clk 0:03:00.9]} 1... d6 {[%clk 0:02:59.5]} 2. g3 {[%clk 0:02:58.9]}
2... e5 {[%clk 0:02:59.8]} 3. Bg2 {[%clk 0:02:58.8]} 3... f5 {[%clk 0:02:59.5]}
4. O-O {[%clk 0:02:55.7]} 4... Nf6 {[%clk 0:02:56.4]} 5. d3 {[%clk 0:02:55.7]}
5... Be7 {[%clk 0:02:55.9]} 6. c4 {[%clk 0:02:55.8]} 6... O-O {[%clk 0:02:56.6]}
7. Nc3 {[%clk 0:02:55.3]} 7... Qe8 {[%clk 0:02:57.2]} 8. e3 {[%clk 0:02:52.4]}
8... Qh5 {[%clk 0:02:43.2]} 9. Nd2 {[%clk 0:02:50.1]} 9... Qg6 {[%clk
0:02:38.5]} 10. f4 {[%clk 0:02:49.1]} 10... exf4 {[%clk 0:02:22.9]} 11. exf4
{[%clk 0:02:48.1]} 11... d5 {[%clk 0:02:15]} 12. Nxd5 {[%clk 0:02:34.9]} 12...
Bc5+ {[%clk 0:02:13.9]} 13. Kh1 {[%clk 0:02:34.7]} 13... Nc6 {[%clk 0:01:58.6]}
14. Nb3 {[%clk 0:02:31.5]} 14... Bd6 {[%clk 0:01:34.1]} 15. c5 {[%clk
0:02:27.5]} 15... Be7 {[%clk 0:01:29.6]} 16. Nxc7 {[%clk 0:02:27.2]} 16... Rb8
{[%clk 0:01:29.8]} 17. d4 {[%clk 0:02:17.3]} 17... Bd8 {[%clk 0:00:57.4]} 18.
Nb5 {[%clk 0:02:06]} 18... Ne4 {[%clk 0:00:52.7]} 19. d5 {[%clk 0:02:02.9]}
19... Na5 {[%clk 0:00:48.1]} 20. Be3 {[%clk 0:01:52.5]} 20... Re8 {[%clk
0:00:41.1]} 21. Bd4 {[%clk 0:01:38.7]} 21... Qh6 {[%clk 0:00:25.3]} 22. Kg1
{[%clk 0:01:35.2]} 22... a6 {[%clk 0:00:17.2]} 23. Nc3 {[%clk 0:01:33.1]} 23...
Nf6 {[%clk 0:00:17.6]} 24. Nxa5 {[%clk 0:01:29.9]} 24... Bxa5 {[%clk 0:00:16.7]}
25. Bxf6 {[%clk 0:01:29.4]} 25... Qxf6 {[%clk 0:00:16.5]} 26. Re1 {[%clk
0:01:29.9]} 26... Bd7 {[%clk 0:00:14.3]} 27. Qd3 {[%clk 0:01:27.9]} 27... g5
{[%clk 0:00:13.5]} 28. Qc4 {[%clk 0:01:23.4]} 28... gxf4 {[%clk 0:00:12.3]} 29.
Qxf4 {[%clk 0:01:23.4]} 29... Bxc3 {[%clk 0:00:12]} 30. bxc3 {[%clk 0:01:24.3]}
30... Qxc3 {[%clk 0:00:12.1]} 31. Qd6 {[%clk 0:01:24.4]} 31... Rxe1+ {[%clk
0:00:11.6]} 32. Bf1 {[%clk 0:01:13.8]} 32... Qe3+ {[%clk 0:00:10.3]} 33. Kg2
{[%clk 0:01:13.8]} 33... Rxa1 {[%clk 0:00:08.8]} 34. Qxb8+ {[%clk 0:01:14.1]}
34... Kg7 {[%clk 0:00:08.7]} 35. Qxb7 {[%clk 0:01:13.2]} 35... Qe4+ {[%clk
0:00:08.6]} 36. Kg1 {[%clk 0:01:07.9]} 36... Qe3+ {[%clk 0:00:08.8]} 37. Kg2
{[%clk 0:01:07.8]} 37... Qd2+ {[%clk 0:00:06.6]} 38. Kh3 {[%clk 0:01:02.9]}
38... Qh6+ {[%clk 0:00:06.1]} 39. Kg2 {[%clk 0:01:03.6]} 39... Qd2+ {[%clk
0:00:06.4]} 40. Kh3 {[%clk 0:01:03.9]} 40... Rxf1 {[%clk 0:00:05.7]} 41. Qxd7+
{[%clk 0:01:03.5]} 41... Kg6 {[%clk 0:00:05.9]} 42. Qe8+ {[%clk 0:00:46]} 42...
Kg7 {[%clk 0:00:05.5]} 43. Qe7+ {[%clk 0:00:45.9]} 43... Kg6 {[%clk 0:00:05.5]}
44. Qe8+ {[%clk 0:00:46.2]} 44... Kf6 {[%clk 0:00:05.7]} 45. Qe6+ {[%clk
0:00:44.6]} 45... Kg5 {[%clk 0:00:06]} 46. Qe7+ {[%clk 0:00:44.7]} 46... Kg6
{[%clk 0:00:06.2]} 47. Qe6+ {[%clk 0:00:43.9]} 47... Kh5 {[%clk 0:00:05.9]} 48.
Qf7+ {[%clk 0:00:44]} 48... Kh6 {[%clk 0:00:06]} 49. Qf6+ {[%clk 0:00:17.7]}
49... Kh5 {[%clk 0:00:05.4]} 50. Qf7+ {[%clk 0:00:18.1]} 50... Kh6 {[%clk
0:00:02.5]} 51. Qe6+ {[%clk 0:00:11.9]} 51... Kg7 {[%clk 0:00:02.3]} 52. Qe7+
{[%clk 0:00:12.2]} 52... Kg6 {[%clk 0:00:02.9]} 1/2-1/2